bitfinex-derivatives/quotes_BTCF0:USTF0_20230105
["timestamp","ask_amount","ask_price","bid_price","bid_amount"]
[1672883627135,0.6574,16853.0,16852.0,0.04638619]
[1672883629347,0.6514,16853.0,16852.0,0.0416457]
[1672883629663,0.6994,16853.0,16852.0,0.0456457]
[1672883629876,0.6514,16853.0,16852.0,0.0416457]
[1672883630074,0.7544,16853.0,16852.0,0.0446457]
[1672883637544,0.7544,16853.0,16852.0,0.003]
[1672883637743,0.05,16852.0,16850.0,0.0416457]
[1672883637955,0.3007,16851.0,16850.0,0.0416457]
[1672883639128,0.05,16850.0,16848.0,0.0416457]
[1672883639330,0.3007,16849.0,16848.0,0.0416457]
[1672883640386,0.3007,16849.0,16846.0,0.05]
[1672883640592,0.3007,16849.0,16848.0,0.0416457]
[1672883640915,0.3007,16849.0,16848.0,0.0456457]
[1672883641120,0.3507,16849.0,16848.0,0.0416457]
[1672883641335,0.3667,16849.0,16848.0,0.0416457]
[1672883641648,0.3507,16849.0,16848.0,0.0416457]
[1672883641847,0.3567,16849.0,16848.0,0.0456457]
[1672883662777,0.6574,16849.0,16848.0,0.0456457]
[1672883669494,0.65717772,16849.0,16848.0,0.0456457]
[1672883679712,0.05577772,16849.0,16848.0,0.0456457]
[1672883680023,0.65717772,16849.0,16848.0,0.0456457]
[1672883684960,0.05577772,16849.0,16848.0,0.0456457]
[1672883685170,0.65717772,16849.0,16848.0,0.0456457]
[1672883685378,0.05577772,16849.0,16848.0,0.0456457]
[1672883685583,0.65717772,16849.0,16848.0,0.0456457]
[1672883702184,0.05577772,16849.0,16848.0,0.0456457]
[1672883702399,0.65717772,16849.0,16848.0,0.0456457]
[1672883715004,0.35647772,16849.0,16848.0,0.0456457]
[1672883715226,0.65717772,16849.0,16848.0,0.0456457]
[1672883716906,0.05577772,16849.0,16848.0,0.0456457]
[1672883717221,0.65717772,16849.0,16848.0,0.0456457]
[1672883722167,0.65717772,16849.0,16848.0,0.04554726]
[1672883726783,0.05577772,16849.0,16848.0,0.04554726]
[1672883726994,0.65717772,16849.0,16848.0,0.04554726]
[1672883728254,0.65717772,16849.0,16848.0,0.004]
[1672883728469,0.65717772,16849.0,16845.0,0.04160726]
[1672883728684,0.6014,16846.0,16845.0,6e-05]
[1672883728893,0.6014,16846.0,16845.0,0.04160726]
[1672883729735,0.6164,16846.0,16845.0,0.04160726]
[1672883730360,0.6014,16846.0,16845.0,0.04160726]
[1672883730578,0.6174,16846.0,16845.0,0.04160726]
[1672883730993,0.6014,16846.0,16845.0,0.04160726]
[1672883731206,0.6124,16846.0,16845.0,0.04160726]
[1672883734786,0.011,16846.0,16845.0,0.04160726]
[1672883735205,0.6124,16846.0,16845.0,0.04160726]
[1672883780518,0.6124,16846.0,16845.0,0.04142269]
[1672883781575,0.6124,16846.0,16845.0,0.04148269]
[1672883782620,0.61246,16846.0,16845.0,0.04148269]
[1672883787776,0.31176,16846.0,16845.0,0.04148269]
[1672883787983,0.36176,16846.0,16845.0,0.04148269]
[1672883790084,0.06106,16846.0,16845.0,0.04148269]
[1672883790285,0.36176,16846.0,16845.0,0.04148269]
[1672883791337,0.35076,16846.0,16845.0,0.04148269]
[1672883791546,0.35676,16846.0,16845.0,0.04148269]
[1672883794182,0.3567,16846.0,16845.0,0.04142269]
[1672883795238,0.3567,16846.0,16845.0,0.04148269]
[1672883796291,0.35676,16846.0,16845.0,0.04148269]
[1672883798699,0.05606,16846.0,16845.0,0.04148269]
[1672883798909,0.35676,16846.0,16845.0,0.04148269]
[1672883802175,0.39276,16846.0,16845.0,0.04148269]
[1672883802490,0.35076,16846.0,16845.0,0.04148269]
[1672883802701,0.44776,16846.0,16845.0,0.04148269]
[1672883807322,0.14706,16846.0,16845.0,0.04148269]
[1672883807738,0.44776,16846.0,16845.0,0.04148269]
[1672883809425,0.14706,16846.0,16845.0,0.04148269]
[1672883809634,0.44776,16846.0,16845.0,0.04148269]
[1672883816991,0.14706,16846.0,16845.0,0.04148269]
[1672883817300,0.44776,16846.0,16845.0,0.04148269]
[1672883824239,0.14706,16846.0,16845.0,0.04148269]
[1672883824448,0.74846,16846.0,16845.0,0.04148269]
[1672883826348,0.74846,16846.0,16845.0,0.04134581]
[1672883826775,0.7484,16846.0,16845.0,0.04134581]
[1672883842858,0.147,16846.0,16845.0,0.04134581]
[1672883843070,0.4477,16846.0,16845.0,0.04134581]
[1672883849799,0.147,16846.0,16845.0,0.04134581]
[1672883850014,0.4477,16846.0,16845.0,0.04134581]
[1672883859143,0.3977,16846.0,16845.0,0.04134581]
[1672883871866,0.097,16846.0,16845.0,0.04134581]
[1672883872173,0.3977,16846.0,16845.0,0.04134581]
[1672883872798,0.097,16846.0,16845.0,0.04134581]
[1672883873013,0.3977,16846.0,16845.0,0.04134581]
[1672883874704,0.097,16846.0,16845.0,0.04134581]
[1672883874920,0.3977,16846.0,16845.0,0.04134581]
[1672883877213,0.097,16846.0,16845.0,0.04134581]
[1672883877423,0.3977,16846.0,16845.0,0.04134581]
[1672883880268,0.3977,16846.0,16845.0,0.0412575]
[1672883885733,0.097,16846.0,16845.0,0.0412575]
[1672883885951,0.3977,16846.0,16845.0,0.0412575]
[1672883886166,0.097,16846.0,16845.0,0.0412575]
[1672883886474,0.3977,16846.0,16845.0,0.0412575]
[1672883889517,0.097,16846.0,16845.0,0.0412575]
[1672883889735,0.3977,16846.0,16845.0,0.0412575]
[1672883891522,0.097,16846.0,16845.0,0.0412575]
[1672883891725,0.3977,16846.0,16845.0,0.0412575]
[1672883897507,0.097,16846.0,16845.0,0.0412575]
[1672883897722,0.3977,16846.0,16845.0,0.0412575]
[1672883900456,0.097,16846.0,16845.0,0.0412575]
[1672883900667,0.3977,16846.0,16845.0,0.0412575]
[1672883902868,0.097,16846.0,16845.0,0.0412575]
[1672883903077,0.3977,16846.0,16845.0,0.0412575]
[1672883904131,0.097,16846.0,16845.0,0.0412575]
[1672883904341,0.3977,16846.0,16845.0,0.0412575]
[1672883905494,0.097,16846.0,16845.0,0.0412575]
[1672883905707,0.3977,16846.0,16845.0,0.0412575]
[1672883911498,0.097,16846.0,16845.0,0.0412575]
[1672883911708,0.3977,16846.0,16845.0,0.0412575]
[1672883913275,0.097,16846.0,16845.0,0.0412575]
[1672883913492,0.3977,16846.0,16845.0,0.0412575]
[1672883916639,0.097,16846.0,16845.0,0.0412575]
[1672883917059,0.3977,16846.0,16845.0,0.0412575]
[1672883917687,0.097,16846.0,16845.0,0.0412575]
[1672883917904,0.3977,16846.0,16845.0,0.0412575]
[1672883919797,0.097,16846.0,16845.0,0.0412575]
[1672883920005,0.3977,16846.0,16845.0,0.0412575]
[1672883920203,0.3977,16846.0,16843.0,0.43956447]
[1672883920416,0.3977,16846.0,16844.0,0.0412575]
[1672883920626,0.05,16845.0,16844.0,0.0412575]
[1672883921888,0.056,16845.0,16844.0,0.0412575]
[1672883924418,0.3067,16845.0,16844.0,0.0412575]
[1672883931470,0.006,16845.0,16844.0,0.0412575]
[1672883931981,0.3067,16845.0,16844.0,0.0412575]
[1672883934927,0.3067,16845.0,16844.0,0.04114049]
[1672883938603,0.006,16845.0,16844.0,0.04114049]
[1672883938815,0.3067,16845.0,16844.0,0.04114049]
[1672883943231,0.006,16845.0,16844.0,0.04114049]
[1672883943432,0.3067,16845.0,16844.0,0.04114049]
[1672883947021,0.006,16845.0,16844.0,0.04114049]
[1672883947434,0.3067,16845.0,16844.0,0.04114049]
[1672883971192,0.4357,16845.0,16844.0,0.04114049]
[1672883981069,0.05,16844.0,16843.0,0.05]
[1672883981279,0.05,16844.0,16843.0,0.09114049]
[1672883982332,0.147,16844.0,16843.0,0.09114049]
[1672883982536,0.147,16844.0,16843.0,0.09107437]
[1672883993266,0.147,16844.0,16843.0,0.04114049]
[1672884033509,0.097,16844.0,16843.0,0.04114049]
[1672884033933,0.147,16844.0,16843.0,0.04114049]
[1672884034138,0.147,16844.0,16843.0,0.04102685]
[1672884038965,0.097,16844.0,16843.0,0.04102685]
[1672884051165,0.097,16844.0,16843.0,0.12989132]
[1672884051362,0.097,16844.0,16843.0,0.17989132]
[1672884051783,0.097,16844.0,16843.0,0.09102685]
[1672884057773,0.097,16844.0,16843.0,0.39172685]
[1672884059979,0.097,16844.0,16843.0,0.09102685]
[1672884068286,0.09692187,16844.0,16843.0,0.09102685]
[1672884075227,0.09692187,16844.0,16843.0,0.39172685]
[1672884085538,0.09692187,16844.0,16843.0,0.09102685]
[1672884087645,0.09692187,16844.0,16843.0,0.17989132]
[1672884089843,0.09692187,16844.0,16843.0,0.3131875]
[1672884093522,0.09692187,16844.0,16843.0,0.17989132]
[1672884096461,0.09692187,16844.0,16843.0,0.48059132]
[1672884097317,0.09692187,16844.0,16843.0,0.6138875]
[1672884102773,0.09692187,16844.0,16843.0,0.39172685]
[1672884110240,0.09692187,16844.0,16843.0,0.6138875]
[1672884112759,0.09692187,16844.0,16843.0,0.82572303]
[1672884113502,0.09692187,16844.0,16843.0,0.91464226]
[1672884113719,0.09692187,16844.0,16843.0,0.61394226]
[1672884117697,0.09692187,16844.0,16843.0,0.39172685]
[1672884118637,0.09692187,16844.0,16843.0,0.39160251]
[1672884119277,0.09692187,16844.0,16843.0,0.69230251]
[1672884125171,0.09692187,16844.0,16843.0,0.91451792]
[1672884126212,0.09692187,16844.0,16843.0,0.78122174]
[1672884127676,0.09692187,16844.0,16843.0,0.91451792]
[1672884127896,0.09692187,16844.0,16843.0,0.78122174]
[1672884131678,0.09692187,16844.0,16843.0,0.39160251]
[1672884132729,0.09692187,16844.0,16843.0,0.35057566]
[1672884137774,0.09692187,16844.0,16843.0,0.39160251]
[1672884166368,0.09692187,16844.0,16843.0,0.35057566]
[1672884166574,0.09692187,16844.0,16843.0,0.39160251]
[1672884172244,0.09692187,16844.0,16843.0,0.39139287]
[1672884175192,0.09692187,16844.0,16843.0,0.09069287]
[1672884179186,0.09692187,16844.0,16843.0,0.04966602]
[1672884179593,0.09692187,16844.0,16842.0,0.39172685]
[1672884181606,0.047,16844.0,16842.0,0.39372685]
[1672884182447,0.05,16843.0,16842.0,0.39372685]
[1672884184335,0.055,16843.0,16842.0,0.40072685]
[1672884186438,0.005,16843.0,16842.0,0.40072685]
[1672884186860,0.005,16843.0,16842.0,0.10002685]
[1672884198201,0.005,16843.0,16842.0,0.48964608]
[1672884199582,0.005,16843.0,16842.0,0.40072685]
[1672884199782,0.005,16843.0,16842.0,0.48964608]
[1672884200212,0.005,16843.0,16842.0,0.40072685]
[1672884200733,0.005,16843.0,16842.0,0.48964608]
[1672884200949,0.005,16843.0,16842.0,1.08364608]
[1672884201157,0.005,16843.0,16842.0,1.21694226]
[1672884201364,0.05,16846.0,16843.0,0.05]
[1672884201571,0.05,16846.0,16845.0,0.04102685]
[1672884201784,0.05,16846.0,16845.0,0.09102685]
[1672884203153,0.186,16846.0,16845.0,0.09302685]
[1672884217554,0.4867,16846.0,16845.0,0.09302685]
[1672884221648,0.186,16846.0,16845.0,0.09302685]
[1672884234165,0.186,16846.0,16845.0,0.39372685]
[1672884234891,0.15578842,16846.0,16845.0,0.39372685]
[1672884237001,0.15578842,16846.0,16845.0,0.09302685]
[1672884253820,0.45648842,16846.0,16845.0,0.09302685]
[1672884259822,0.15578842,16846.0,16845.0,0.09302685]
[1672884261606,0.15578842,16846.0,16845.0,0.04302685]
[1672884262862,0.45648842,16846.0,16845.0,0.002]
[1672884274942,0.75718842,16846.0,16845.0,0.002]
[1672884287133,0.75718842,16846.0,16845.0,0.00188293]
[1672884308677,0.15578842,16846.0,16845.0,0.00188293]
[1672884309003,0.75718842,16846.0,16845.0,0.00188293]
[1672884320357,0.00188,16845.0,16842.0,0.04102685]
[1672884320569,0.6014,16843.0,16842.0,0.04102685]
[1672884322774,0.6074,16843.0,16842.0,0.04302685]
[1672884323198,0.6974,16843.0,16842.0,0.04102685]
[1672884323620,0.6974,16843.0,16837.0,1.69743704]
[1672884323832,0.3007,16839.0,16837.0,0.91413704]
[1672884324046,0.3007,16839.0,16837.0,0.61413704]
[1672884324260,0.05,16838.0,16837.0,0.61413704]
[1672884326673,0.065,16838.0,16837.0,0.61413704]
[1672884332344,0.05,16838.0,16837.0,0.61413704]
[1672884332662,0.066,16838.0,16837.0,0.61413704]
[1672884341804,0.061,16838.0,16837.0,0.61413704]
[1672884343800,0.011,16838.0,16837.0,0.61413704]
[1672884344001,0.011,16838.0,16837.0,0.91413704]
[1672884344212,0.011,16838.0,16837.0,0.61413704]
[1672884345685,0.011,16838.0,16837.0,0.91483704]
[1672884354408,0.011,16838.0,16837.0,0.61413704]
[1672884374368,0.011,16838.0,16837.0,1.29705627]
[1672884374787,0.05,16842.0,16838.0,0.05]
[1672884375006,0.3507,16842.0,16838.0,0.3507]
[1672884375955,0.4857,16842.0,16838.0,0.3527]
[1672884376787,0.4857,16842.0,16838.0,0.3397]
[1672884379949,0.7864,16842.0,16838.0,0.3397]
[1672884393927,0.4857,16842.0,16838.0,0.3397]
[1672884398444,0.4857,16842.0,16838.0,0.42861923]
[1672884399071,0.135,16842.0,16838.0,1.32331923]
[1672884399388,0.135,16842.0,16838.0,1.45661541]
[1672884399704,0.135,16842.0,16840.0,0.3007]
[1672884399915,0.135,16842.0,16840.0,0.3507]
[1672884400120,0.135,16842.0,16841.0,0.05]
[1672884401704,0.05,16843.0,16841.0,0.05]
[1672884402020,0.136,16842.0,16841.0,0.05]
[1672884402227,0.05,16843.0,16841.0,0.05]
[1672884402437,0.136,16842.0,16841.0,0.051]
[1672884402652,0.136,16842.0,16841.0,0.05]
[1672884402865,0.186,16843.0,16841.0,0.051]
[1672884403175,0.05,16843.0,16841.0,0.05]
[1672884403388,0.186,16843.0,16841.0,0.051]
[1672884405583,0.136,16843.0,16841.0,0.051]
[1672884406121,0.186,16843.0,16841.0,0.051]
[1672884407066,0.186,16843.0,16841.0,0.3517]
[1672884407801,0.186,16843.0,16841.0,0.051]
[1672884408015,0.186,16843.0,16841.0,0.3517]
[1672884411791,0.136,16843.0,16841.0,0.3517]
[1672884414727,0.136,16843.0,16841.0,0.051]
[1672884414944,0.136,16843.0,16841.0,0.3517]
[1672884428814,0.136,16843.0,16841.0,0.35156566]
[1672884431863,0.136,16843.0,16841.0,0.05086566]
[1672884438904,0.136,16843.0,16842.0,0.3507]
[1672884439112,0.136,16843.0,16842.0,0.43961923]
[1672884439954,0.136,16843.0,16842.0,0.3507]
[1672884440375,0.136,16843.0,16842.0,0.3017]
[1672884440591,0.136,16843.0,16842.0,0.001]
[1672884441220,0.05,16844.0,16841.0,0.04986566]
[1672884441434,0.135,16843.0,16842.0,0.001]
[1672884443753,0.4357,16843.0,16842.0,0.001]
[1672884452884,0.135,16843.0,16842.0,0.001]
[1672884453202,0.4357,16843.0,16842.0,0.001]
[1672884454889,0.4857,16843.0,16842.0,0.001]
[1672884455090,0.185,16843.0,16842.0,0.001]
[1672884455300,0.4857,16843.0,16842.0,0.001]
[1672884463709,0.185,16843.0,16842.0,0.051]
[1672884469394,0.135,16843.0,16842.0,0.051]
[1672884475173,0.135,16843.0,16842.0,0.0508921]
[1672884482111,0.135,16843.0,16842.0,0.6522921]
[1672884483065,0.135,16843.0,16842.0,1.2462921]
[1672884495467,0.135,16843.0,16842.0,1.33509115]
[1672884495781,0.135,16843.0,16842.0,1.2462921]
[1672884495993,0.135,16843.0,16842.0,1.33509115]
[1672884497040,0.135,16843.0,16842.0,1.46828972]
[1672884497458,0.135,16843.0,16842.0,1.33509115]
[1672884498511,0.135,16843.0,16842.0,1.46828972]
[1672884500618,0.135,16843.0,16842.0,1.33509115]
[1672884506515,0.135,16843.0,16842.0,1.46828972]
[1672884507565,0.135,16843.0,16842.0,1.33509115]
[1672884507987,0.135,16843.0,16842.0,1.37949067]
[1672884510086,0.135,16843.0,16842.0,0.77809067]
[1672884510291,0.135,16843.0,16842.0,2.04827924]
[1672884511557,0.135,16843.0,16842.0,1.91508067]
[1672884515331,0.13170251,16843.0,16842.0,2.13707829]
[1672884515542,0.13170251,16843.0,16842.0,1.95948019]
[1672884516081,0.13170251,16843.0,16842.0,5.72948019]
[1672884516396,0.3049,16845.0,16842.0,5.90636578]
[1672884516593,0.3665,16847.0,16845.0,0.05]
[1672884516811,0.3665,16847.0,16846.0,0.3007]
[1672884516812,0.05,16847.0,16846.0,0.3007]
[1672884517649,0.186,16847.0,16846.0,0.3007]
[1672884517865,0.186,16847.0,16846.0,0.3507]
[1672884519228,0.186,16847.0,16846.0,0.3537]
[1672884526067,0.186,16847.0,16846.0,0.053]
[1672884526277,0.186,16847.0,16846.0,0.3537]
[1672884534887,0.136,16847.0,16846.0,0.3537]
[1672884538473,0.186,16847.0,16846.0,0.3537]
[1672884539208,0.186,16847.0,16846.0,0.053]
[1672884542048,0.136,16847.0,16846.0,0.053]
[1672884545194,0.136,16847.0,16846.0,0.3537]
[1672884547720,0.136,16847.0,16846.0,0.053]
[1672884550146,0.136,16847.0,16846.0,0.3537]
[1672884555292,0.136,16847.0,16846.0,0.053]
[1672884555719,0.136,16847.0,16846.0,0.3537]
[1672884563504,0.136,16847.0,16846.0,0.053]
[1672884568973,0.136,16847.0,16846.0,0.05276111]
[1672884577370,0.186,16847.0,16846.0,0.003]
[1672884583163,0.7874,16847.0,16846.0,0.003]
[1672884615098,0.4867,16847.0,16846.0,0.003]
[1672884621838,0.4867,16847.0,16846.0,0.00279653]
[1672884624677,0.186,16847.0,16846.0,0.00279653]
[1672884625000,0.4867,16847.0,16846.0,0.00279653]
[1672884668013,0.186,16847.0,16846.0,0.00279653]
[1672884668210,0.4867,16847.0,16846.0,0.00279653]
[1672884668626,0.4867,16847.0,16846.0,0.00263489]
[1672884678838,0.48660929,16847.0,16846.0,0.00263489]
[1672884687351,0.18590929,16847.0,16846.0,0.00263489]
[1672884733512,0.48660929,16847.0,16846.0,0.00253588]
[1672884742869,0.18590929,16847.0,16846.0,0.00253588]
[1672884743405,0.48660929,16847.0,16846.0,0.00253588]
[1672884754233,0.78730929,16847.0,16846.0,0.00253588]
[1672884755810,0.48660929,16847.0,16846.0,0.00253588]
[1672884756025,0.78730929,16847.0,16846.0,0.00253588]
[1672884757601,0.18590929,16847.0,16846.0,0.00253588]
[1672884757814,0.78730929,16847.0,16846.0,0.00253588]
[1672884758639,0.48660929,16847.0,16846.0,0.00253588]
[1672884759065,0.18590929,16847.0,16846.0,0.00253588]
[1672884759276,0.48660929,16847.0,16846.0,0.00253588]
[1672884776838,0.18590929,16847.0,16846.0,0.00253588]
[1672884777051,0.78730929,16847.0,16846.0,0.00253588]
[1672884779785,0.78730929,16847.0,16846.0,0.00235365]
[1672884780423,0.05,16846.0,16842.0,0.05]
[1672884780624,0.3007,16844.0,16842.0,0.05]
[1672884780828,0.05,16843.0,16842.0,0.05]
[1672884781994,0.05,16843.0,16842.0,0.051]
[1672884782519,0.056,16843.0,16842.0,0.058]
[1672884783044,0.139,16843.0,16842.0,0.051]
[1672884784935,0.185,16843.0,16842.0,0.051]
[1672884791447,0.185,16843.0,16842.0,0.001]
[1672884794172,0.4857,16843.0,16842.0,0.001]
[1672884814360,0.4857,16843.0,16840.0,0.05]
[1672884816038,0.3507,16843.0,16840.0,0.05]
[1672884816356,0.4857,16843.0,16840.0,0.05]
[1672884824031,0.185,16843.0,16840.0,0.05]
[1672884824246,0.4857,16843.0,16840.0,0.3507]
[1672884824658,0.4857,16843.0,16840.0,0.35058391]
[1672884828655,0.4857,16843.0,16840.0,0.04988391]
[1672884829810,0.185,16843.0,16840.0,0.04988391]
[1672884830016,0.4857,16843.0,16840.0,0.04988391]
[1672884834961,0.185,16843.0,16840.0,0.35058391]
[1672884835177,0.4857,16843.0,16840.0,0.35058391]
[1672884836761,0.185,16843.0,16840.0,0.04988391]
[1672884836975,0.4857,16843.0,16840.0,0.35058391]
[1672884842951,0.185,16843.0,16840.0,0.35058391]
[1672884843370,0.185,16843.0,16840.0,0.04988391]
[1672884843587,0.185,16843.0,16840.0,0.35058391]
[1672884853466,0.185,16843.0,16840.0,0.04988391]
[1672884856309,0.3007,16842.0,16840.0,0.04988391]
[1672884856520,0.05,16841.0,16840.0,0.04988391]
[1672884858206,0.136,16841.0,16840.0,0.04988391]
[1672884858736,0.086,16841.0,16840.0,0.04988391]
[1672884869991,0.086,16841.0,16840.0,0.35058391]
[1672884870927,0.086,16841.0,16840.0,0.04988391]
[1672884871138,0.086,16841.0,16840.0,0.35058391]
[1672884872611,0.086,16841.0,16840.0,0.04988391]
[1672884872824,0.086,16841.0,16840.0,0.35058391]
[1672884874919,0.086,16841.0,16840.0,0.35047343]
[1672884880820,0.086,16841.0,16840.0,0.34967343]
[1672884883025,0.086,16841.0,16840.0,0.04897343]
[1672884883239,0.086,16841.0,16840.0,0.34967343]
[1672884890069,0.086,16841.0,16840.0,0.04897343]
[1672884890692,0.136,16841.0,16840.0,0.04897343]
[1672884902674,0.1358027,16841.0,16840.0,0.04897343]
[1672884906049,0.4365027,16841.0,16838.0,0.7833]
[1672884906254,0.4365027,16841.0,16837.0,0.3007]
[1672884906676,0.05,16840.0,16838.0,0.05]
[1672884908247,0.081,16840.0,16838.0,0.05]
[1672884908675,0.3007,16839.0,16838.0,0.05]
[1672884909720,0.3077,16839.0,16838.0,0.051]
[1672884918651,0.007,16839.0,16838.0,0.051]
[1672884924537,0.007,16839.0,16838.0,0.001]
[1672884927171,0.3077,16839.0,16838.0,0.001]
[1672884944405,0.007,16839.0,16838.0,0.001]
[1672884945877,0.007,16839.0,16838.0,3.771]
[1672884946102,0.007,16839.0,16838.0,0.001]
[1672884946299,0.007,16839.0,16838.0,0.051]
[1672884946509,0.007,16839.0,16838.0,3.821]
[1672884950192,0.007,16839.0,16838.0,0.051]
[1672884950715,0.007,16839.0,16838.0,0.05082091]
[1672884951557,0.007,16839.0,16838.0,3.82082091]
[1672884952092,0.007,16839.0,16838.0,4.41482091]
[1672884954708,0.007,16839.0,16838.0,0.64482091]
[1672884962590,0.007,16839.0,16838.0,0.94552091]
[1672884967972,0.007,16839.0,16838.0,0.05082091]
[1672884974587,0.007,16839.0,16838.0,0.94552091]
[1672884978694,0.007,16839.0,16838.0,1.03441136]
[1672884978905,0.007,16839.0,16838.0,0.94552091]
[1672884979638,0.007,16839.0,16838.0,1.03441136]
[1672884981110,0.00464635,16839.0,16838.0,1.7479329]
[1672884981321,0.29255825,16842.0,16839.0,0.05]
[1672884981533,0.29255825,16842.0,16841.0,0.8947]
[1672884981735,0.3199,16844.0,16842.0,0.05]
[1672884981948,0.05,16844.0,16842.0,0.05]
[1672884982691,0.3007,16845.0,16842.0,0.05]
[1672884982897,0.3507,16845.0,16842.0,0.05]
[1672884983635,0.3507,16845.0,16843.0,0.3007]
[1672884983847,0.4867,16845.0,16844.0,0.05]
[1672884985096,0.4867,16845.0,16844.0,0.051]
[1672884985321,0.4867,16845.0,16844.0,0.001]
[1672884987109,0.4857,16845.0,16844.0,0.001]
[1672885000758,0.185,16845.0,16844.0,0.001]
[1672885000973,0.4857,16845.0,16844.0,0.001]
[1672885007595,0.185,16845.0,16844.0,0.001]
[1672885007914,0.4857,16845.0,16844.0,0.001]
[1672885028722,0.4857,16845.0,16844.0,0.00083196]
[1672885030198,0.185,16845.0,16844.0,0.00083196]
[1672885031881,0.18487776,16845.0,16844.0,0.00083196]
[1672885040714,0.48557776,16845.0,16844.0,0.00083196]
[1672885047333,0.48557776,16845.0,16844.0,3.196e-05]
[1672885047536,0.05,16844.0,16838.0,0.7833]
[1672885047751,0.3007,16842.0,16838.0,0.7833]
[1672885047966,0.05,16841.0,16838.0,0.05]
[1672885048388,0.05,16841.0,16838.0,0.644]
[1672885049024,0.064,16841.0,16838.0,0.646]
[1672885050061,0.05,16841.0,16838.0,0.646]
[1672885050271,0.064,16841.0,16838.0,0.646]
[1672885050489,0.05,16841.0,16838.0,0.644]
[1672885050699,0.05,16841.0,16838.0,0.646]
[1672885050700,0.066,16841.0,16838.0,0.646]
[1672885051956,0.066,16841.0,16838.0,0.9467]
[1672885055537,0.066,16841.0,16838.0,0.3527]
[1672885055954,0.066,16841.0,16838.0,0.9467]
[1672885060489,0.016,16841.0,16838.0,0.9467]
[1672885062164,0.016,16841.0,16839.0,0.3007]
[1672885062371,0.016,16841.0,16840.0,0.05]
[1672885063215,0.05,16842.0,16840.0,0.05]
[1672885063429,0.007,16841.0,16840.0,0.052]
[1672885064261,0.077,16842.0,16840.0,0.05]
[1672885064684,0.05,16842.0,16840.0,0.05]
[1672885064894,0.007,16841.0,16840.0,0.052]
[1672885066052,0.05,16842.0,16840.0,0.05]
[1672885066258,0.077,16842.0,16840.0,0.05]
[1672885066472,0.05,16842.0,16840.0,0.05]
[1672885066781,0.007,16841.0,16840.0,0.052]
[1672885066996,0.05,16842.0,16840.0,0.05]
[1672885067199,0.077,16842.0,16840.0,0.05]
[1672885068691,0.3007,16841.0,16840.0,0.05]
[1672885070166,0.3077,16841.0,16840.0,0.052]
[1672885072270,0.3077,16841.0,16840.0,0.002]
[1672885073951,0.007,16841.0,16840.0,0.002]
[1672885074151,0.3277,16841.0,16839.0,0.644]
[1672885074361,0.05,16840.0,16839.0,0.644]
[1672885074991,0.05,16840.0,16839.0,0.05]
[1672885076257,0.3507,16840.0,16839.0,0.05]
[1672885076468,0.3577,16840.0,16839.0,0.052]
[1672885077615,0.057,16840.0,16839.0,0.052]
[1672885079200,0.057,16840.0,16839.0,0.646]
[1672885081728,0.057,16840.0,16839.0,0.052]
[1672885084352,0.057,16840.0,16839.0,0.646]
[1672885085302,0.007,16840.0,16839.0,0.646]
[1672885101268,0.007,16840.0,16839.0,0.6457996]
[1672885102968,0.007,16840.0,16839.0,0.0517996]
[1672885113800,0.007,16840.0,16839.0,0.3524996]
[1672885115269,0.007,16840.0,16839.0,1.03545846]
[1672885115480,0.03472349,16843.0,16840.0,0.05]
[1672885116533,0.16972349,16843.0,16840.0,0.05]
[1672885117153,0.16972349,16843.0,16840.0,0.9447]
[1672885130196,0.16972349,16843.0,16840.0,1.2454]
[1672885131037,0.16972349,16843.0,16842.0,0.3007]
[1672885131987,0.135,16843.0,16842.0,0.3007]
[1672885133134,0.3507,16844.0,16842.0,0.3007]
[1672885133355,0.136,16843.0,16842.0,0.3017]
[1672885134190,0.05,16844.0,16842.0,0.3007]
[1672885134503,0.078,16843.0,16842.0,0.3017]
[1672885136088,0.183,16844.0,16842.0,0.3017]
[1672885136301,0.183,16844.0,16843.0,0.05]
[1672885136505,0.05,16844.0,16843.0,0.05]
[1672885137135,0.183,16844.0,16843.0,0.05]
[1672885137662,0.185,16844.0,16843.0,0.051]
[1672885152060,0.135,16844.0,16843.0,0.051]
[1672885166359,0.4357,16844.0,16843.0,0.051]
[1672885168558,0.4357,16844.0,16843.0,0.05087908]
[1672885170449,0.4357,16844.0,16843.0,0.001]
[1672885175504,0.4857,16844.0,16843.0,0.001]
[1672885176755,0.185,16844.0,16843.0,0.001]
[1672885176966,0.4857,16844.0,16843.0,0.001]
[1672885188643,0.185,16844.0,16843.0,0.001]
[1672885206092,0.4857,16844.0,16843.0,0.001]
[1672885214181,0.4857,16844.0,16843.0,0.00092612]
[1672885215853,0.185,16844.0,16843.0,0.00092612]
[1672885216279,0.4857,16844.0,16843.0,0.00092612]
[1672885228167,0.4854866,16844.0,16843.0,0.00092612]
[1672885231002,0.1847866,16844.0,16843.0,0.00092612]
[1672885231208,0.4854866,16844.0,16843.0,0.00092612]
[1672885233000,0.1847866,16844.0,16843.0,0.00092612]
[1672885233316,0.4854866,16844.0,16843.0,0.00092612]
[1672885242575,0.1847866,16844.0,16843.0,0.00092612]
[1672885242998,0.4854866,16844.0,16843.0,0.00092612]
[1672885247187,0.1847866,16844.0,16843.0,0.00092612]
[1672885248453,0.1847866,16844.0,16843.0,0.05092612]
[1672885260863,0.1847866,16844.0,16843.0,0.00092612]
[1672885262219,0.4854866,16844.0,16843.0,0.00092612]
[1672885274959,0.7861866,16844.0,16843.0,0.00092612]